[Event "*** Qualifier 3: Titled Tuesday 3|2 Blitz"]
[Site "Chess.com"]
[Date "2017.04.18"]
[Round "4"]
[White "djogrodek1"]
[Black "pedromartinez91"]
[Result "1-0"]
[WhiteElo "2394"]
[BlackElo "2324"]
[TimeControl "180+2"]
[EndTime "13:55:43 PDT"]
[Termination "djogrodek1 won by resignation"]

1. e4 {[%clk 0:03:02]} 1... e6 {[%clk 0:02:47.6]} 2. d4 {[%clk 0:03:02.4]} 2...
d5 {[%clk 0:02:48.7]} 3. Nd2 {[%clk 0:03:04.1]} 3... Nf6 {[%clk 0:02:49.3]} 4.
e5 {[%clk 0:03:05.3]} 4... Ne4 {[%clk 0:02:50.4]} 5. Bd3 {[%clk 0:02:54.8]} 5...
Nxd2 {[%clk 0:02:39.1]} 6. Bxd2 {[%clk 0:02:56.1]} 6... c5 {[%clk 0:02:40.6]} 7.
c3 {[%clk 0:02:57.3]} 7... Qb6 {[%clk 0:02:39.4]} 8. Ne2 {[%clk 0:02:40.2]} 8...
Nc6 {[%clk 0:02:30.2]} 9. O-O {[%clk 0:02:28.4]} 9... Bd7 {[%clk 0:02:26.6]} 10.
Be3 {[%clk 0:02:26.6]} 10... Be7 {[%clk 0:02:19.4]} 11. Rb1 {[%clk 0:02:24.4]}
11... Rc8 {[%clk 0:02:13.5]} 12. a3 {[%clk 0:02:13.9]} 12... cxd4 {[%clk
0:02:11.4]} 13. cxd4 {[%clk 0:02:15.8]} 13... Na5 {[%clk 0:02:11.7]} 14. Nf4
{[%clk 0:02:15.9]} 14... Bb5 {[%clk 0:02:00.8]} 15. Bxb5+ {[%clk 0:02:09.6]}
15... Qxb5 {[%clk 0:02:00.2]} 16. Qg4 {[%clk 0:02:11.1]} 16... g6 {[%clk
0:01:59]} 17. Rfc1 {[%clk 0:01:20.8]} 17... Rc6 {[%clk 0:01:44.6]} 18. Rxc6
{[%clk 0:00:52.9]} 18... Qxc6 {[%clk 0:01:43.8]} 19. Rc1 {[%clk 0:00:51.8]}
19... Nc4 {[%clk 0:01:41.8]} 20. Qd1 {[%clk 0:00:40.2]} 20... Qd7 {[%clk
0:01:41.3]} 21. a4 {[%clk 0:00:26]} 21... O-O {[%clk 0:01:34.8]} 22. b3 {[%clk
0:00:26.9]} 22... Na5 {[%clk 0:01:34.2]} 23. Bd2 {[%clk 0:00:24.5]} 23... Nc6
{[%clk 0:01:33.8]} 24. Be3 {[%clk 0:00:20.2]} 24... Rc8 {[%clk 0:01:31.9]} 25.
Nd3 {[%clk 0:00:21.4]} 25... Ba3 {[%clk 0:01:18.6]} 26. Rc2 {[%clk 0:00:21.4]}
26... Nb4 {[%clk 0:01:10.4]} 27. Nxb4 {[%clk 0:00:19]} 27... Bxb4 {[%clk
0:01:10.8]} 28. Qc1 {[%clk 0:00:20.4]} 28... Rxc2 {[%clk 0:01:05.2]} 29. Qxc2
{[%clk 0:00:22.3]} 29... a6 {[%clk 0:01:02.4]} 30. Kf1 {[%clk 0:00:23.2]} 30...
Kf8 {[%clk 0:00:58.8]} 31. Ke2 {[%clk 0:00:21.9]} 31... Ke8 {[%clk 0:00:59.9]}
32. Bd2 {[%clk 0:00:22.5]} 32... Be7 {[%clk 0:00:57.2]} 33. Kd3 {[%clk
0:00:20.7]} 33... h5 {[%clk 0:00:52.2]} 34. f3 {[%clk 0:00:21]} 34... Qd8 {[%clk
0:00:41.6]} 35. Qc3 {[%clk 0:00:14.3]} 35... Kd7 {[%clk 0:00:35.5]} 36. Qa5
{[%clk 0:00:11.6]} 36... Qc8 {[%clk 0:00:25.6]} 37. Qc3 {[%clk 0:00:10.3]} 37...
Qc6 {[%clk 0:00:24.6]} 38. Qxc6+ {[%clk 0:00:09.8]} 38... Kxc6 {[%clk
0:00:25.3]} 39. h3 {[%clk 0:00:10.1]} 39... Ba3 {[%clk 0:00:25.4]} 40. Ba5
{[%clk 0:00:11.1]} 40... Bb2 {[%clk 0:00:25.7]} 41. Ke3 {[%clk 0:00:11.7]} 41...
b5 {[%clk 0:00:26]} 42. Kd3 {[%clk 0:00:12.9]} 42... Bc1 {[%clk 0:00:25.9]} 43.
g4 {[%clk 0:00:13.9]} 43... Bf4 {[%clk 0:00:24.2]} 44. Bb4 {[%clk 0:00:13.8]}
44... Bh2 {[%clk 0:00:23.9]} 45. Ke3 {[%clk 0:00:13.3]} 45... Bg1+ {[%clk
0:00:24.2]} 46. Kd3 {[%clk 0:00:14.5]} 46... Kb6 {[%clk 0:00:25.4]} 47. Kc3
{[%clk 0:00:11.1]} 47... Bf2 {[%clk 0:00:21.7]} 48. Be7 {[%clk 0:00:11.4]} 48...
bxa4 {[%clk 0:00:18.7]} 49. bxa4 {[%clk 0:00:12.1]} 49... Ka5 {[%clk 0:00:19.5]}
50. Kb3 {[%clk 0:00:06.1]} 50... Bxd4 {[%clk 0:00:18.7]} 51. Bd6 {[%clk
0:00:08]} 51... Kb6 {[%clk 0:00:18.6]} 52. Kb4 {[%clk 0:00:08.9]} 52... Be3
{[%clk 0:00:18.1]} 53. gxh5 {[%clk 0:00:08.7]} 53... gxh5 {[%clk 0:00:18.5]} 54.
Be7 {[%clk 0:00:10.6]} 54... Bd2+ {[%clk 0:00:18.5]} 55. Kb3 {[%clk 0:00:12.2]}
55... Kc6 {[%clk 0:00:19.6]} 56. Bd6 {[%clk 0:00:12.8]} 56... Be3 {[%clk
0:00:20.3]} 57. Kb4 {[%clk 0:00:13.9]} 57... Bb6 {[%clk 0:00:21.8]} 58. Be7
{[%clk 0:00:13.2]} 58... Bc7 {[%clk 0:00:22.9]} 59. Bf6 {[%clk 0:00:14.7]} 59...
a5+ {[%clk 0:00:21.4]} 60. Kc3 {[%clk 0:00:14.9]} 60... Bb6 {[%clk 0:00:22.3]}
61. Be7 {[%clk 0:00:15.6]} 61... Bc5 {[%clk 0:00:23.6]} 62. Bf6 {[%clk
0:00:16.5]} 62... Bb4+ {[%clk 0:00:24.8]} 63. Kd3 {[%clk 0:00:17.6]} 63... Ba3
{[%clk 0:00:24.6]} 64. Bg7 {[%clk 0:00:18.9]} 64... Be7 {[%clk 0:00:22.7]} 65.
Bh6 {[%clk 0:00:18.8]} 65... Kc5 {[%clk 0:00:23.4]} 66. Bd2 {[%clk 0:00:20.3]}
66... Bd8 {[%clk 0:00:23.7]} 67. Bc3 {[%clk 0:00:21.7]} 67... Bc7 {[%clk
0:00:23.5]} 68. Bd2 {[%clk 0:00:20.1]} 68... Bxe5 {[%clk 0:00:22.6]} 69. Bxa5
{[%clk 0:00:21.2]} 69... d4 {[%clk 0:00:21]} 70. Bd8 {[%clk 0:00:21.5]} 70...
Kd5 {[%clk 0:00:21.6]} 71. a5 {[%clk 0:00:22.1]} 71... Bb8 {[%clk 0:00:22]} 72.
a6 {[%clk 0:00:23.4]} 72... e5 {[%clk 0:00:22.8]} 73. Bb6 {[%clk 0:00:23.3]}
73... f5 {[%clk 0:00:24]} 74. a7 {[%clk 0:00:24.6]} 74... e4+ {[%clk 0:00:25.4]}
75. fxe4+ {[%clk 0:00:25.5]} 75... fxe4+ {[%clk 0:00:26.1]} 76. Ke2 {[%clk
0:00:26.9]} 76... Bxa7 {[%clk 0:00:27.2]} 77. Bxa7 {[%clk 0:00:28.8]} 77... Kc4
{[%clk 0:00:28.5]} 78. Kd2 {[%clk 0:00:29.8]} 78... e3+ {[%clk 0:00:27.9]} 79.
Ke2 {[%clk 0:00:31.2]} 79... Kc3 {[%clk 0:00:28.6]} 80. Bb6 {[%clk 0:00:32.6]}
80... h4 {[%clk 0:00:27.2]} 81. Kf3 {[%clk 0:00:21.6]} 81... Kd3 {[%clk
0:00:25.5]} 82. Ba5 {[%clk 0:00:20.5]} 82... Kc2 {[%clk 0:00:25.5]} 83. Ke2
{[%clk 0:00:20.9]} 83... Kb3 {[%clk 0:00:25.6]} 84. Kd3 {[%clk 0:00:22.1]} 84...
Ka4 {[%clk 0:00:24.7]} 85. Be1 {[%clk 0:00:23.6]} 85... Kb3 {[%clk 0:00:24.6]}
86. Bxh4 {[%clk 0:00:23.9]} 86... Kb4 {[%clk 0:00:24.9]} 1-0

[Event "*** Qualifier 3: Titled Tuesday 3|2 Blitz"]
[Site "Chess.com"]
[Date "2017.04.18"]
[Round "4"]
[White "agapov771"]
[Black "Rating-Schmating"]
[Result "0-1"]
[WhiteElo "2428"]
[BlackElo "2303"]
[TimeControl "180+2"]
[EndTime "13:55:45 PDT"]
[Termination "Rating-Schmating won on time"]

1. d4 {[%clk 0:02:52.7]} 1... Nf6 {[%clk 0:02:59.2]} 2. c4 {[%clk 0:02:52.6]}
2... e6 {[%clk 0:03:00.1]} 3. Nc3 {[%clk 0:02:53.1]} 3... Bb4 {[%clk 0:03:00.7]}
4. Qb3 {[%clk 0:02:53.9]} 4... Nc6 {[%clk 0:02:59.1]} 5. Nf3 {[%clk 0:02:53.6]}
5... d5 {[%clk 0:02:59.1]} 6. Bg5 {[%clk 0:02:53.4]} 6... Bxc3+ {[%clk 0:02:53]}
7. Qxc3 {[%clk 0:02:53.3]} 7... h6 {[%clk 0:02:49.4]} 8. Bh4 {[%clk 0:02:51.5]}
8... g5 {[%clk 0:02:50.1]} 9. Bg3 {[%clk 0:02:51.8]} 9... Ne4 {[%clk 0:02:51.3]}
10. Qc2 {[%clk 0:02:50.3]} 10... Nxg3 {[%clk 0:02:42.9]} 11. hxg3 {[%clk
0:02:50.7]} 11... Qf6 {[%clk 0:02:44.8]} 12. e3 {[%clk 0:02:50.5]} 12... Bd7
{[%clk 0:02:44.4]} 13. a3 {[%clk 0:02:41.3]} 13... O-O-O {[%clk 0:02:38]} 14. b4
{[%clk 0:02:32.5]} 14... dxc4 {[%clk 0:02:36.2]} 15. Qxc4 {[%clk 0:02:32.2]}
15... e5 {[%clk 0:02:34.9]} 16. d5 {[%clk 0:02:29.4]} 16... Ne7 {[%clk
0:02:35.3]} 17. Rc1 {[%clk 0:02:26.5]} 17... Qd6 {[%clk 0:02:34.9]} 18. e4
{[%clk 0:02:26]} 18... Kb8 {[%clk 0:02:35.3]} 19. Qc5 {[%clk 0:02:24.4]} 19...
f5 {[%clk 0:02:35.2]} 20. Bd3 {[%clk 0:02:20.4]} 20... fxe4 {[%clk 0:02:29.8]}
21. Bxe4 {[%clk 0:02:20.4]} 21... Bf5 {[%clk 0:02:24.2]} 22. Bxf5 {[%clk
0:02:07.7]} 22... Nxf5 {[%clk 0:02:24]} 23. O-O {[%clk 0:01:53.2]} 23... Qxc5
{[%clk 0:02:20.4]} 24. Rxc5 {[%clk 0:01:51.2]} 24... Rhe8 {[%clk 0:02:19.5]} 25.
Rfc1 {[%clk 0:01:49.1]} 25... Re7 {[%clk 0:02:19.3]} 26. g4 {[%clk 0:01:48.9]}
26... Nd4 {[%clk 0:02:16.5]} 27. Nxd4 {[%clk 0:01:48.7]} 27... exd4 {[%clk
0:02:16.1]} 28. Rd1 {[%clk 0:01:48.4]} 28... Re4 {[%clk 0:02:04]} 29. f3 {[%clk
0:01:48.3]} 29... Re3 {[%clk 0:01:57.9]} 30. Rxd4 {[%clk 0:01:46.6]} 30... Rxa3
{[%clk 0:01:58.6]} 31. Re4 {[%clk 0:01:46.5]} 31... Rd3 {[%clk 0:01:57.6]} 32.
Re7 {[%clk 0:01:44.7]} 32... Rd4 {[%clk 0:01:44.3]} 33. b5 {[%clk 0:01:42.1]}
33... Rb4 {[%clk 0:01:28.4]} 34. Rexc7 {[%clk 0:01:34]} 34... Rxb5 {[%clk
0:01:26]} 35. Kf2 {[%clk 0:01:17.7]} 35... Rxc5 {[%clk 0:01:24.3]} 36. Rxc5
{[%clk 0:01:17.3]} 36... b6 {[%clk 0:01:25.3]} 37. Rb5 {[%clk 0:01:14.3]} 37...
Kb7 {[%clk 0:01:26]} 38. Ke3 {[%clk 0:01:13.8]} 38... a6 {[%clk 0:01:27.2]} 39.
Rb1 {[%clk 0:01:12.7]} 39... Rxd5 {[%clk 0:01:27.4]} 40. Ke4 {[%clk 0:01:12.6]}
40... Rd2 {[%clk 0:01:28]} 41. Rh1 {[%clk 0:01:09.5]} 41... Rd6 {[%clk
0:01:26.4]} 42. Ke5 {[%clk 0:01:08.9]} 42... Rc6 {[%clk 0:01:27.9]} 43. g3
{[%clk 0:01:09]} 43... a5 {[%clk 0:01:29.1]} 44. f4 {[%clk 0:01:09]} 44... gxf4
{[%clk 0:01:30.2]} 45. gxf4 {[%clk 0:01:08.2]} 45... a4 {[%clk 0:01:31]} 46. f5
{[%clk 0:01:07.8]} 46... b5 {[%clk 0:01:26.2]} 47. f6 {[%clk 0:01:07.4]} 47...
Rc3 {[%clk 0:01:21.9]} 48. Rf1 {[%clk 0:01:03.8]} 48... Re3+ {[%clk 0:01:21.5]}
49. Kd4 {[%clk 0:01:02.6]} 49... Re8 {[%clk 0:01:21.9]} 50. Kc5 {[%clk
0:01:01.6]} 50... Ka6 {[%clk 0:01:19.8]} 51. f7 {[%clk 0:01:00.7]} 51... Rf8
{[%clk 0:01:20.8]} 52. Kb4 {[%clk 0:01:00.2]} 52... Kb6 {[%clk 0:01:15]} 53.
Rf6+ {[%clk 0:00:59.2]} 53... Kc7 {[%clk 0:01:16.5]} 54. Kxb5 {[%clk 0:00:55.9]}
54... a3 {[%clk 0:01:17.8]} 55. Kc5 {[%clk 0:00:53.8]} 55... a2 {[%clk
0:01:14.8]} 56. Ra6 {[%clk 0:00:52.7]} 56... Rxf7 {[%clk 0:01:13.2]} 57. Rxa2
{[%clk 0:00:51.9]} 57... Rf4 {[%clk 0:01:11.5]} 58. Rg2 {[%clk 0:00:50.8]} 58...
Kd7 {[%clk 0:01:11.1]} 59. Kd5 {[%clk 0:00:50.3]} 59... Ke7 {[%clk 0:01:12.4]}
60. Ke5 {[%clk 0:00:50.4]} 60... Rf1 {[%clk 0:01:13.2]} 61. Ra2 {[%clk
0:00:48.4]} 61... Kf7 {[%clk 0:01:13.6]} 62. Ra6 {[%clk 0:00:47.5]} 62... Kg7
{[%clk 0:01:12.9]} 63. Ke4 {[%clk 0:00:46.7]} 63... Re1+ {[%clk 0:01:13.3]} 64.
Kf4 {[%clk 0:00:45.2]} 64... Rf1+ {[%clk 0:01:14.1]} 65. Ke4 {[%clk 0:00:45.1]}
65... Kh7 {[%clk 0:01:12.8]} 66. Rc6 {[%clk 0:00:41.4]} 66... Rf7 {[%clk
0:01:12.8]} 67. Ke5 {[%clk 0:00:40]} 67... Re7+ {[%clk 0:01:12.7]} 68. Kf5
{[%clk 0:00:39.2]} 68... Rf7+ {[%clk 0:01:13.6]} 69. Rf6 {[%clk 0:00:38.4]}
69... Rg7 {[%clk 0:01:13.1]} 70. Rf8 {[%clk 0:00:36]} 70... Rg5+ {[%clk
0:01:13.6]} 71. Kf4 {[%clk 0:00:33.9]} 71... Ra5 {[%clk 0:01:14.6]} 72. Rf5
{[%clk 0:00:30.6]} 72... Ra4+ {[%clk 0:01:14.5]} 73. Kg3 {[%clk 0:00:29.6]}
73... Kg6 {[%clk 0:01:15.4]} 74. Rb5 {[%clk 0:00:28.7]} 74... Ra6 {[%clk
0:01:13.4]} 75. Kh4 {[%clk 0:00:27.3]} 75... Ra7 {[%clk 0:01:10.2]} 76. Rb6+
{[%clk 0:00:26.5]} 76... Kg7 {[%clk 0:01:11.6]} 77. Kh5 {[%clk 0:00:25.8]} 77...
Ra5+ {[%clk 0:01:11.4]} 78. Kh4 {[%clk 0:00:25.1]} 78... Ra1 {[%clk 0:01:12.9]}
79. Rb7+ {[%clk 0:00:23.5]} 79... Kf6 {[%clk 0:01:14.2]} 80. Rb6+ {[%clk
0:00:22.6]} 80... Kg7 {[%clk 0:01:15.7]} 81. Rb7+ {[%clk 0:00:21.6]} 81... Kf6
{[%clk 0:01:17]} 82. Rb6+ {[%clk 0:00:18.4]} 82... Kg7 {[%clk 0:01:18.4]} 83.
Rb7+ {[%clk 0:00:17.7]} 83... Kh8 {[%clk 0:01:19.3]} 84. Rb8+ {[%clk 0:00:16.7]}
84... Kh7 {[%clk 0:01:20.7]} 85. Rb7+ {[%clk 0:00:16.5]} 85... Kg6 {[%clk
0:01:21.7]} 86. Rb6+ {[%clk 0:00:15.6]} 86... Kg7 {[%clk 0:01:19.7]} 87. Rb7+
{[%clk 0:00:14.8]} 87... Kf8 {[%clk 0:01:21]} 88. Rb8+ {[%clk 0:00:14]} 88...
Ke7 {[%clk 0:01:21.2]} 89. Rb6 {[%clk 0:00:12.7]} 89... Rh1+ {[%clk 0:01:18.4]}
90. Kg3 {[%clk 0:00:11.9]} 90... Kd7 {[%clk 0:01:20]} 91. Rf6 {[%clk 0:00:09.9]}
91... Ke7 {[%clk 0:01:21.3]} 92. Rf5 {[%clk 0:00:08.6]} 92... Ke6 {[%clk
0:01:21.8]} 93. Rh5 {[%clk 0:00:07.3]} 93... Rg1+ {[%clk 0:01:18.4]} 94. Kf3
{[%clk 0:00:06]} 94... Rf1+ {[%clk 0:01:18.9]} 95. Kg2 {[%clk 0:00:04.5]} 95...
Rf6 {[%clk 0:01:19.9]} 96. Ra5 {[%clk 0:00:03.2]} 96... Kf7 {[%clk 0:01:20.6]}
97. Kg3 {[%clk 0:00:02.9]} 97... Kg6 {[%clk 0:01:22]} 98. Kh4 {[%clk 0:00:02]}
98... Rc6 {[%clk 0:01:23.4]} 0-1

[Event "*** Qualifier 3: Titled Tuesday 3|2 Blitz"]
[Site "Chess.com"]
[Date "2017.04.18"]
[Round "4"]
[White "underdogchss"]
[Black "maciek_92"]
[Result "0-1"]
[WhiteElo "2413"]
[BlackElo "2528"]
[TimeControl "180+2"]
[EndTime "13:55:51 PDT"]
[Termination "maciek_92 won by resignation"]

1. d4 {[%clk 0:03:02]} 1... Nf6 {[%clk 0:03:00.3]} 2. Nf3 {[%clk 0:03:02.4]}
2... g6 {[%clk 0:03:00.7]} 3. Bg5 {[%clk 0:02:59.5]} 3... Bg7 {[%clk 0:03:00.5]}
4. Nbd2 {[%clk 0:03:00.5]} 4... d5 {[%clk 0:02:59.7]} 5. e3 {[%clk 0:03:01.2]}
5... O-O {[%clk 0:03:00.6]} 6. c3 {[%clk 0:03:01.4]} 6... Bf5 {[%clk 0:02:53.4]}
7. Qb3 {[%clk 0:02:58.1]} 7... Nbd7 {[%clk 0:02:49.1]} 8. Be2 {[%clk 0:02:57.3]}
8... c5 {[%clk 0:02:48.9]} 9. O-O {[%clk 0:02:55.9]} 9... Qc7 {[%clk 0:02:49.7]}
10. Bf4 {[%clk 0:02:52.5]} 10... Qb6 {[%clk 0:02:44.5]} 11. h3 {[%clk
0:02:53.8]} 11... c4 {[%clk 0:02:45.1]} 12. Qxb6 {[%clk 0:02:50.9]} 12... axb6
{[%clk 0:02:47]} 13. a3 {[%clk 0:02:51.3]} 13... b5 {[%clk 0:02:47.4]} 14. g4
{[%clk 0:02:49.8]} 14... Bc2 {[%clk 0:02:33.2]} 15. Rac1 {[%clk 0:02:49.6]}
15... Ba4 {[%clk 0:02:34.1]} 16. Ne5 {[%clk 0:02:46.9]} 16... Rfe8 {[%clk
0:02:32.8]} 17. g5 {[%clk 0:02:40.9]} 17... Ne4 {[%clk 0:02:25.3]} 18. Nxe4
{[%clk 0:02:31.8]} 18... Nxe5 {[%clk 0:02:26.1]} 19. Nc5 {[%clk 0:02:22.9]}
19... Nc6 {[%clk 0:02:16.7]} 20. Nxb7 {[%clk 0:02:23.9]} 20... e5 {[%clk
0:02:17.1]} 21. dxe5 {[%clk 0:02:17.4]} 21... Nxe5 {[%clk 0:02:19]} 22. Nc5
{[%clk 0:02:07]} 22... Rac8 {[%clk 0:01:53.4]} 23. Nxa4 {[%clk 0:01:50.9]} 23...
bxa4 {[%clk 0:01:55.3]} 24. Rfd1 {[%clk 0:01:50.5]} 24... Rcd8 {[%clk
0:01:52.5]} 25. Rd2 {[%clk 0:01:40.9]} 25... Rd6 {[%clk 0:01:47.5]} 26. Rcd1
{[%clk 0:01:36.2]} 26... Rb6 {[%clk 0:01:48.5]} 27. Rxd5 {[%clk 0:01:32.4]}
27... Rxb2 {[%clk 0:01:48.5]} 28. Rd8 {[%clk 0:01:31.1]} 28... Kf8 {[%clk
0:01:43.6]} 29. Bxe5 {[%clk 0:01:19.5]} 29... Bxe5 {[%clk 0:01:43.7]} 30. Bxc4
{[%clk 0:01:17.9]} 30... Bxc3 {[%clk 0:01:41]} 31. R8d3 {[%clk 0:01:02.7]} 31...
Rc2 {[%clk 0:01:32.4]} 32. Rd7 {[%clk 0:00:59.2]} 32... Re7 {[%clk 0:01:32.4]}
33. Rxe7 {[%clk 0:00:46.9]} 33... Kxe7 {[%clk 0:01:34.3]} 34. Bb5 {[%clk
0:00:48.5]} 34... Ra2 {[%clk 0:01:33.6]} 35. Bxa4 {[%clk 0:00:42.5]} 35... Rxa3
{[%clk 0:01:33.2]} 36. Bc6 {[%clk 0:00:43.3]} 36... Ra5 {[%clk 0:01:34]} 37. f4
{[%clk 0:00:36.5]} 37... Ke6 {[%clk 0:01:32.9]} 38. Bd7+ {[%clk 0:00:33]} 38...
Ke7 {[%clk 0:01:33.6]} 39. Bg4 {[%clk 0:00:29.3]} 39... Bb4 {[%clk 0:01:30.2]}
40. Rd7+ {[%clk 0:00:28.5]} 40... Ke8 {[%clk 0:01:28.7]} 41. Kf2 {[%clk
0:00:25.4]} 41... Bc5 {[%clk 0:01:28]} 42. Rd3 {[%clk 0:00:25.1]} 42... Ra2+
{[%clk 0:01:25.2]} 43. Kf3 {[%clk 0:00:26.2]} 43... Ke7 {[%clk 0:01:23.7]} 44.
Rd7+ {[%clk 0:00:26.4]} 44... Ke8 {[%clk 0:01:25]} 45. Rd5 {[%clk 0:00:27.1]}
45... Rc2 {[%clk 0:01:24.6]} 46. Re5+ {[%clk 0:00:26.2]} 46... Kf8 {[%clk
0:01:24.6]} 47. h4 {[%clk 0:00:24.5]} 47... Rc3 {[%clk 0:01:17.6]} 48. h5 {[%clk
0:00:24.1]} 48... Bd6 {[%clk 0:01:13]} 49. Re4 {[%clk 0:00:21.3]} 49... Ra3
{[%clk 0:01:12]} 50. Rc4 {[%clk 0:00:20.8]} 50... Ke7 {[%clk 0:01:08.4]} 51. h6
{[%clk 0:00:20.8]} 51... f6 {[%clk 0:00:59.4]} 52. Re4+ {[%clk 0:00:19.5]} 52...
Kf7 {[%clk 0:00:57.6]} 53. Be6+ {[%clk 0:00:20.5]} 53... Kf8 {[%clk 0:00:58.8]}
54. gxf6 {[%clk 0:00:21.3]} 54... Bc5 {[%clk 0:01:00]} 55. Bc4 {[%clk
0:00:21.9]} 55... Rc3 {[%clk 0:00:37.1]} 56. Bd5 {[%clk 0:00:22.8]} 56... Rd3
{[%clk 0:00:36.5]} 57. Bc4 {[%clk 0:00:18.8]} 57... Rc3 {[%clk 0:00:32.2]} 58.
Ke2 {[%clk 0:00:19.8]} 58... Bxe3 {[%clk 0:00:29]} 59. f7 {[%clk 0:00:18.5]}
59... Rxc4 {[%clk 0:00:29.6]} 60. Rxc4 {[%clk 0:00:18.8]} 60... Bb6 {[%clk
0:00:30.4]} 61. Rc6 {[%clk 0:00:19.1]} 61... Ba5 {[%clk 0:00:31]} 62. Ra6 {[%clk
0:00:18.8]} 62... Bc7 {[%clk 0:00:31.7]} 63. Ra7 {[%clk 0:00:19.4]} 63... Bxf4
{[%clk 0:00:32.5]} 64. Kf3 {[%clk 0:00:20]} 64... Bxh6 {[%clk 0:00:33.7]} 65.
Ke4 {[%clk 0:00:21.2]} 65... Bd2 {[%clk 0:00:23.2]} 66. Kd5 {[%clk 0:00:21.5]}
66... Kg7 {[%clk 0:00:23.4]} 67. Rc7 {[%clk 0:00:20.3]} 67... Bb4 {[%clk
0:00:24.1]} 68. Rb7 {[%clk 0:00:20.8]} 68... Bf8 {[%clk 0:00:25.2]} 69. Ke6
{[%clk 0:00:21.7]} 69... h5 {[%clk 0:00:26.2]} 70. Rb5 {[%clk 0:00:22.1]} 70...
Ba3 {[%clk 0:00:26.1]} 71. Ra5 {[%clk 0:00:22.6]} 71... Bf8 {[%clk 0:00:27.2]}
72. Rb5 {[%clk 0:00:22.2]} 72... h4 {[%clk 0:00:23.5]} 73. Ra5 {[%clk
0:00:20.9]} 73... Kh6 {[%clk 0:00:12.1]} 74. Ra8 {[%clk 0:00:21]} 74... Kg7
{[%clk 0:00:11.8]} 75. Ra4 {[%clk 0:00:20.9]} 75... g5 {[%clk 0:00:12.1]} 76.
Rg4 {[%clk 0:00:19]} 76... Kg6 {[%clk 0:00:12.5]} 77. Ra4 {[%clk 0:00:19.1]}
77... h3 {[%clk 0:00:13.4]} 78. Ra2 {[%clk 0:00:17.9]} 78... g4 {[%clk 0:00:14]}
79. Ra8 {[%clk 0:00:17.8]} 79... h2 {[%clk 0:00:08.8]} 80. Rxf8 {[%clk
0:00:18.5]} 80... h1=Q {[%clk 0:00:10.7]} 81. Rg8+ {[%clk 0:00:20.1]} 81... Kh7
{[%clk 0:00:12.3]} 82. f8=Q {[%clk 0:00:17.6]} 82... Qe4+ {[%clk 0:00:13.5]} 83.
Kd7 {[%clk 0:00:18.3]} 83... Qd5+ {[%clk 0:00:14.5]} 84. Ke8 {[%clk 0:00:19.6]}
84... Qxg8 {[%clk 0:00:15.4]} 85. Ke7 {[%clk 0:00:17.7]} 85... Qxf8+ {[%clk
0:00:12.1]} 86. Kxf8 {[%clk 0:00:19.6]} 86... g3 {[%clk 0:00:14]} 87. Kf7 {[%clk
0:00:20.8]} 87... g2 {[%clk 0:00:15.9]} 0-1